fUSD/lending_fUSD_20251101
["ID","MTS","AMOUNT","RATE_DAILY","PERIOD"]
[392826444,1762006232456,-1267.222431,0.00014998,2]
[392826446,1762006232471,-191.197817,0.00014998,2]
[392826448,1762006232480,-151.0,0.00014998,2]
[392826450,1762006232489,-151.0,0.00014998,2]
[392826452,1762006232499,-277.565403,0.00014998,2]
[392826454,1762006232511,-288.663924,0.00014998,2]
[392826457,1762006232520,-1267.222431,0.00014998,2]
[392826459,1762006232538,-180.705394,0.00014998,2]
[392826462,1762006232551,-151.0,0.00014998,2]
[392826464,1762006232561,-1267.222431,0.00014998,2]
[392826466,1762006232571,-151.0,0.00014998,2]
[392826467,1762006232581,-180.705394,0.00014998,2]
[392826469,1762006232593,-1267.222431,0.00014998,2]
[392826471,1762006232604,-288.663924,0.00014998,2]
[392826473,1762006232614,-180.705394,0.00014998,2]
[392826475,1762006232624,-151.0,0.00014998,2]
[392826477,1762006232634,-288.663924,0.00014998,2]
[392826480,1762006232645,-151.0,0.00014998,2]
[392826482,1762006232654,-277.565403,0.00014998,2]
[392826484,1762006232664,-151.0,0.00014998,2]
[392826486,1762006232674,-151.0,0.00014998,2]
[392826488,1762006232684,-580.950496,0.00014998,2]
[392826489,1762006232694,-277.565403,0.00014998,2]
[392826491,1762006232704,-580.950496,0.00014998,2]
[392826493,1762006232714,-151.0,0.00014998,2]
[392826495,1762006232730,-277.565403,0.00014998,2]
[392826497,1762006232740,-151.0,0.00014998,2]
[392826499,1762006232751,-180.705394,0.00014998,2]
[392826501,1762006232760,-580.950496,0.00014998,2]
[392826503,1762006232772,-180.705394,0.00014998,2]
[392826505,1762006232781,-288.663924,0.00014998,2]
[392826507,1762006232791,-277.565403,0.00014998,2]
[392826509,1762006232801,-580.950496,0.00014998,2]
[392826511,1762006232812,-151.0,0.00014998,2]
[392826513,1762006232822,-288.663924,0.00014998,2]
[392826515,1762006232832,-180.705394,0.00014998,2]
[392826517,1762006232841,-288.663924,0.00014998,2]
[392826519,1762006232852,-151.0,0.00014998,2]
[392826521,1762006232861,-580.950496,0.00014998,2]
[392826523,1762006232871,-288.663924,0.00014998,2]
[392826524,1762006232881,-580.950496,0.00014998,2]
[392826525,1762006232891,-580.950496,0.00014998,2]
[392826526,1762006232900,-180.705394,0.00014998,2]
[392826527,1762006232910,-288.663924,0.00014998,2]
[392826528,1762006232920,-580.950496,0.00014998,2]
[392826529,1762006232929,-288.663924,0.00014998,2]
[392826530,1762006232939,-580.950496,0.00014998,2]
[392826531,1762006232949,-288.663924,0.00014998,2]
[392826532,1762006232959,-288.663924,0.00014998,2]
[392826533,1762006232972,-580.950496,0.00014998,2]
[392826534,1762006232982,-180.705394,0.00014998,2]
[392826535,1762006232992,-580.950496,0.00014998,2]
[392826536,1762006233002,-288.663924,0.00014998,2]
[392826537,1762006233012,-580.950496,0.00014998,2]
[392826538,1762006233023,-180.705394,0.00014998,2]
[392826539,1762006233033,-288.663924,0.00014998,2]
[392826540,1762006233043,-151.0,0.00014998,2]
[392826541,1762006233054,-580.950496,0.00014998,2]
[392826542,1762006233064,-280.149336,0.00014998,2]
[392826543,1762006233075,-580.950496,0.00014998,2]
[392826544,1762006233085,-580.950496,0.00014998,2]
[392826545,1762006233099,-580.950496,0.00014998,2]
[392826546,1762006233109,-288.663924,0.00014998,2]
[392826547,1762006233119,-288.663924,0.00014998,2]
[392826548,1762006233129,-151.0,0.00014998,2]
[392826549,1762006233142,-151.0,0.00014998,2]
[392826550,1762006233152,-151.0,0.00014998,2]
[392826551,1762006233161,-153.568752,0.00014998,2]
[392826552,1762006233171,-159.707585,0.00014998,2]
[392826553,1762006233181,-151.0,0.00014998,2]
[392826554,1762006233190,-151.0,0.00014998,2]
[392826555,1762006233200,-151.0,0.00014998,2]
[392826556,1762006233210,-151.0,0.00014998,2]
[392826557,1762006233223,-153.163376,0.00014998,2]
[392826558,1762006233233,-262.19798093,0.00014998,2]
[392826559,1762006233242,-203.92497175,0.00014998,2]
[392826560,1762006233252,-150.0,0.00014998,2]
[392826561,1762006233262,-259.681106,0.00014998,2]
[392826562,1762006233271,-150.0,0.00014998,2]
[392826563,1762006233281,-18127.1300069,0.00014998,2]
[392826564,1762006233291,-309.93258,0.00014998,2]
[392826565,1762006233300,-150.0,0.00014998,2]
[392826566,1762006233310,-150.0,0.00014998,2]
[392826567,1762006233319,-500.0,0.00014999,2]
[392826568,1762006233328,-500.0,0.00014999,2]
[392826569,1762006233338,-500.0,0.00014999,2]
[392826570,1762006233347,-500.0,0.00014999,2]
[392826571,1762006233358,-500.0,0.00014999,2]
[392826572,1762006233367,-500.0,0.00014999,2]
[392826573,1762006233377,-500.0,0.00014999,2]
[392826574,1762006233387,-500.0,0.00014999,2]
[392826575,1762006233397,-500.0,0.00014999,2]
[392826576,1762006233407,-500.0,0.00014999,2]
[392826577,1762006233417,-500.0,0.00014999,2]
[392826578,1762006233427,-500.0,0.00014999,2]
[392826579,1762006233436,-204.06144706,0.00014999,2]
[392826580,1762006233446,-151.0,0.00014999,2]
[392826581,1762006233457,-151.0,0.00014999,2]
[392826582,1762006233469,-163.632111,0.00014999,2]
[392826583,1762006233480,-159.696175,0.00014999,2]
[392826584,1762006233490,-151.0,0.00014999,2]
[392826585,1762006233499,-268.166299,0.00014999,2]
[392826586,1762006233509,-170.718702,0.00014999,2]
[392826587,1762006233518,-151.0,0.00014999,2]
[392826588,1762006233528,-151.0,0.00014999,2]
[392826589,1762006233538,-151.0,0.00014999,2]
[392826590,1762006233552,-151.0,0.00014999,2]
[392826591,1762006233562,-151.0,0.00014999,2]
[392826592,1762006233572,-159.253859,0.00014999,2]
[392826593,1762006233581,-151.0,0.00014999,2]
[392826594,1762006233591,-151.0,0.00014999,2]
[392826595,1762006233601,-151.0,0.00014999,2]
[392826596,1762006233610,-250.03192,0.00014999,2]
[392826597,1762006233619,-151.0,0.00014999,2]
[392826598,1762006233630,-615.391948,0.00014999,2]
[392826599,1762006233639,-615.391948,0.00014999,2]
[392826600,1762006233648,-158.665339,0.00014999,2]
[392826601,1762006233658,-202.042491,0.00014999,2]
[392826602,1762006233668,-615.391948,0.00014999,2]
[392826603,1762006233678,-151.0,0.00014999,2]
[392826604,1762006233687,-151.0,0.00014999,2]
[392826605,1762006233697,-615.391948,0.00014999,2]
[392826606,1762006233706,-182.916703,0.00014999,2]
[392826607,1762006233719,-924.153143,0.00014999,2]
[392826608,1762006233730,-924.153143,0.00014999,2]
[392826609,1762006233739,-924.153143,0.00014999,2]
[392826610,1762006233749,-257.001592,0.00014999,2]
[392826611,1762006233758,-924.153143,0.00014999,2]
[392826612,1762006233768,-257.001592,0.00014999,2]
[392826613,1762006233778,-257.001592,0.00014999,2]
[392826614,1762006233787,-257.001591,0.00014999,2]
[392826615,1762006233797,-1267.222431,0.00014999,2]
[392826616,1762006233806,-277.565403,0.00014999,2]
[392826617,1762006233816,-1267.222431,0.00014999,2]
[392826618,1762006233825,-277.565403,0.00014999,2]
[392826619,1762006233838,-180.705394,0.00014999,2]
[392826620,1762006233848,-1267.222431,0.00014999,2]
[392826621,1762006233858,-151.0,0.00014999,2]
[392826622,1762006233868,-277.565403,0.00014999,2]
[392826623,1762006233879,-151.0,0.00014999,2]
[392826624,1762006233889,-180.705394,0.00014999,2]
[392826625,1762006233899,-1267.222423,0.00014999,2]
[392826626,1762006233908,-288.663924,0.00014999,2]
[392826627,1762006233917,-151.0,0.00014999,2]
[392826628,1762006233927,-277.56541,0.00014999,2]
[392826629,1762006233936,-580.950496,0.00014999,2]
[392826630,1762006233946,-180.705394,0.00014999,2]
[392826631,1762006233956,-288.663924,0.00014999,2]
[392826632,1762006233966,-580.950496,0.00014999,2]
[392826633,1762006233977,-288.663924,0.00014999,2]
[392826634,1762006233987,-580.950496,0.00014999,2]
[392826635,1762006233996,-180.705394,0.00014999,2]
[392826636,1762006234006,-580.950506,0.00014999,2]
[392826637,1762006234015,-288.663926,0.00014999,2]
[392826638,1762006234025,-500.0,0.00014999,2]
[392826639,1762006234038,-500.0,0.00014999,2]
[392826640,1762006234048,-500.0,0.00014999,2]
[392826641,1762006234058,-500.0,0.00014999,2]
[392826642,1762006234067,-500.0,0.00014999,2]
[392826643,1762006234078,-329.89,0.00014999,2]
[392826644,1762006234088,-1000.0,0.00014999,2]
[392826645,1762006234097,-666.0,0.00014999,2]
[392826646,1762006234107,-1708.0,0.00015,2]
[392826647,1762006234116,-6652.0,0.00015,2]
[392826648,1762006234125,-1152.0,0.00015,2]
[392826649,1762006234135,-2188.503,0.00015,2]
[392826650,1762006234144,-6468.0,0.00015,2]
[392826651,1762006234154,-67083.63251537,0.00015,2]
[392826652,1762006234191,-654.67137427,0.00015,2]
[392826653,1762006234203,-997.19177538,0.00015,2]
[392826666,1762006238522,-407.2729115,0.00014973,2]
[392826667,1762006238552,-92.7270885,0.00014973,2]
[392826668,1762006238561,-150.0,0.00014998,2]
[392826669,1762006238570,-500.0,0.00014999,2]
[392826670,1762006238580,-500.0,0.00014999,2]
[392826671,1762006238589,-500.0,0.00014999,2]
[392826672,1762006238598,-500.0,0.00014999,2]
[392826673,1762006238608,-500.0,0.00014999,2]
[392826674,1762006238617,-500.0,0.00014999,2]
[392826675,1762006238626,-421.02001804,0.00014999,2]
[392826676,1762006238635,-500.0,0.00014999,2]
[392826677,1762006238644,-500.0,0.00014999,2]
[392826678,1762006238654,-500.0,0.00014999,2]
[392826679,1762006238663,-500.0,0.00014999,2]
[392826680,1762006238672,-500.0,0.00014999,2]
[392826681,1762006238681,-500.0,0.00014999,2]
[392826682,1762006238690,-500.0,0.00014999,2]
[392826683,1762006238700,-500.0,0.00014999,2]
[392826684,1762006238709,-500.0,0.00014999,2]
[392826685,1762006238718,-500.0,0.00014999,2]
[392826686,1762006238729,-6142.00028711,0.00015,2]
[392826687,1762006238741,-3695.50614282,0.00015,2]
[392826688,1762006238752,-17954.95042614,0.00015,2]
[392826689,1762006238762,-9373.93393295,0.00015,2]
[392826690,1762006238773,-4819.37850343,0.00015,2]
[392826691,1762006238784,-582.92213636,0.00015,2]
[392826693,1762006240081,-559.0,0.00015,2]
[392826694,1762006240090,-12259.53046991,0.00015,2]
[392826695,1762006240101,-917.72009819,0.00015,2]
[392826696,1762006240111,-677.47296978,0.00015,2]
[392826697,1762006240253,-1199.9441538,0.00015,2]
[392826698,1762006240263,-1624.0,0.00015,2]
[392826699,1762006240314,-10789.0,0.00015,2]
[392826700,1762006240376,-1204.13238357,0.00015,2]
[392826704,1762006243069,-1081.0,0.00015,2]
[392826705,1762006243127,-245967.75679171,0.00015,2]
[392826706,1762006243299,-3857.03560505,0.00015,2]
[392826710,1762006250688,-3536.69832808,0.00015,2]
[392826711,1762006250881,-21681.93965176,0.00015,2]
[392826712,1762006251712,-173.56895592,0.00015,2]
[392826713,1762006251723,-756.55894413,0.00015,2]
[392826714,1762006253971,-500.0,0.00014973,2]
[392826715,1762006253993,-500.0,0.00014973,2]
[392826716,1762006254014,-500.0,0.00014997,2]
[392826717,1762006254038,-735500.0,0.00015,2]
[392826718,1762006279472,-159.7527718,0.000149,2]
[392826719,1762006279493,-151.0,0.00014996,2]
[392826720,1762006279519,-500.0,0.00014997,2]
[392826721,1762006279544,-420.6419557,0.00014999,2]
[392826722,1762006279566,-706624.41948425,0.00015,2]
[392826723,1762006279587,-2027.95723379,0.00015,2]
[392826724,1762006279606,-7894.68518592,0.00015,2]
[392826725,1762006279626,-27221.54336854,0.00015,2]
[392826728,1762006302334,-256.46104651,0.000149,2]
[392826729,1762006302356,-833.69081704,0.000149,2]
[392826730,1762006302377,-500.0,0.00014973,2]
[392826731,1762006302399,-3222.264,0.00014999,2]
[392826732,1762006302421,-175187.58413645,0.00015,2]
[392826735,1762006352723,837.2,0.00013699,2]
[392826736,1762006359152,1200.0,0.00014899,2]
[392826738,1762006361898,157.77,0.00014474,2]
[392826739,1762006386546,300.0,0.00014899,2]
[392826740,1762006402236,200.0,0.0001488,2]
[392826741,1762006410111,150.0,0.00014899,2]
[392826742,1762006463471,646.0,0.000315,120]
[392826743,1762006476441,-62260.309,0.000149,2]
[392826744,1762006476467,-22891.70985017,0.000149,2]
[392826745,1762006476490,-883.64091173,0.000149,2]
[392826746,1762006476774,-159.75277178,0.000149,2]
[392826747,1762006476799,-1004.76155972,0.000149,2]
[392826748,1762006476820,-700.0,0.0001497,2]
[392826749,1762006476839,-801.49815433,0.0001497,2]
[392826750,1762006476860,-171.50950967,0.00014973,2]
[392826751,1762006476882,-500.0,0.00014973,2]
[392826752,1762006476902,-500.0,0.00014973,2]
[392826753,1762006476925,-500.0,0.00014973,2]
[392826754,1762006476945,-500.0,0.00014973,2]
[392826755,1762006476964,-306.47,0.0001498,2]
[392826756,1762006476984,-1425.0,0.00014983,2]
[392826757,1762006477004,-151.0,0.00014984,2]
[392826758,1762006477023,-620.0,0.00014991,2]
[392826759,1762006477043,-322.6107,0.00014991,2]
[392826760,1762006477063,-153.79578297,0.00014991,2]
[392826761,1762006477083,-151.0,0.00014991,2]
[392826762,1762006477102,-210.19144222,0.00014991,2]
[392826763,1762006477122,-151.0,0.00014991,2]
[392826764,1762006477143,-151.0,0.00014991,2]
[392826765,1762006477162,-151.0,0.00014991,2]
[392826766,1762006477182,-515.33176881,0.00014991,2]
[392826767,1762006477204,-151.0,0.00014991,2]
[392826768,1762006477224,-151.0,0.00014991,2]
[392826769,1762006477252,-200.0,0.00014991,2]
[392826770,1762006477273,-151.0,0.00014991,2]
[392826771,1762006477292,-151.0,0.00014991,2]
[392826772,1762006477312,-151.0,0.00014991,2]
[392826773,1762006477331,-151.0,0.00014991,2]
[392826774,1762006477350,-200.0,0.00014991,2]
[392826775,1762006477371,-151.0,0.00014991,2]
[392826776,1762006477390,-151.0,0.00014991,2]
[392826777,1762006477410,-151.0,0.00014991,2]
[392826778,1762006477431,-151.0,0.00014991,2]
[392826779,1762006477451,-151.0,0.00014991,2]
[392826780,1762006477472,-248.52407258,0.00014991,2]
[392826781,1762006477493,-151.0,0.00014991,2]
[392826782,1762006477514,-151.0,0.00014991,2]
[392826783,1762006477536,-151.0,0.00014991,2]
[392826784,1762006477557,-151.0,0.00014991,2]
[392826785,1762006477578,-151.0,0.00014991,2]
[392826786,1762006477598,-151.0,0.00014991,2]
[392826787,1762006477621,-151.0,0.00014991,2]
[392826788,1762006477641,-151.0,0.00014991,2]
[392826789,1762006477661,-151.0,0.00014991,2]
[392826790,1762006477681,-151.0,0.00014991,2]
[392826791,1762006477702,-151.0,0.00014991,2]
[392826792,1762006477722,-151.0,0.00014991,2]
[392826793,1762006477743,-151.0,0.00014991,2]
[392826794,1762006477762,-151.0,0.00014991,2]
[392826795,1762006477784,-514.84070869,0.00014991,2]
[392826796,1762006477804,-151.0,0.00014991,2]
[392826797,1762006477825,-151.0,0.00014991,2]
[392826798,1762006477844,-151.0,0.00014991,2]
[392826799,1762006477864,-151.0,0.00014991,2]
[392826800,1762006477887,-250.0,0.00014991,2]
[392826801,1762006477906,-151.0,0.00014991,2]
[392826802,1762006477925,-151.0,0.00014991,2]
[392826803,1762006477945,-250.0,0.00014991,2]
[392826804,1762006477964,-151.0,0.00014991,2]
[392826805,1762006477984,-250.0,0.00014991,2]
[392826806,1762006478005,-151.0,0.00014991,2]
[392826807,1762006478026,-151.0,0.00014991,2]
[392826808,1762006478048,-250.0,0.00014991,2]
[392826809,1762006478070,-151.0,0.00014991,2]
[392826810,1762006478091,-151.0,0.00014991,2]
[392826811,1762006478113,-151.0,0.00014991,2]
[392826812,1762006478134,-151.0,0.00014991,2]
[392826813,1762006478155,-151.0,0.00014991,2]
[392826814,1762006478176,-151.0,0.00014991,2]
[392826815,1762006478198,-151.0,0.00014991,2]
[392826816,1762006478220,-151.0,0.00014991,2]
[392826817,1762006478240,-151.0,0.00014991,2]
[392826818,1762006478260,-151.0,0.00014991,2]
[392826819,1762006478281,-151.0,0.00014991,2]
[392826820,1762006478302,-151.0,0.00014991,2]
[392826821,1762006478323,-151.0,0.00014991,2]
[392826822,1762006478343,-151.0,0.00014991,2]
[392826823,1762006478364,-500.0,0.00014991,2]
[392826824,1762006478385,-500.0,0.00014991,2]
[392826825,1762006478406,-500.0,0.00014991,2]
[392826826,1762006478427,-337.22623762,0.00014991,2]
[392826827,1762006478450,-248.71531821,0.00014991,2]
[392826828,1762006478471,-500.0,0.00014997,2]
[392826829,1762006478494,-500.0,0.00014999,2]
[392826830,1762006478515,-500.0,0.00014999,2]
[392826831,1762006478535,-500.0,0.00014999,2]
[392826832,1762006478555,-500.0,0.00014999,2]
[392826833,1762006478575,-500.0,0.00014999,2]
[392826834,1762006478595,-205.89,0.00014999,2]
[392826835,1762006478615,-666.0,0.00014999,2]
[392826836,1762006478639,-49449.2222115,0.00015,2]
[392826838,1762006531049,1000.0,0.00014493,2]
[392826839,1762006564811,3910.23,0.00014504,2]
[392826842,1762006600732,202.56513,0.0001485,2]
[392826843,1762006681836,150.0,0.00014899,2]
[392826844,1762006684977,300.0,0.00014899,2]
[392826846,1762006742912,300.0,0.00014899,2]
[392826851,1762006795640,168.0,0.00014812,2]
[392826852,1762006798050,1500.0,0.00014072,2]
[392826853,1762006801790,300.0,0.00014899,2]
[392826854,1762006801868,1200.0,0.00014899,2]
[392826855,1762006804266,969.21487,0.00014081,2]
[392826856,1762006804291,540.85513,0.00014081,2]
[392826857,1762006804334,300.0,0.00014899,2]
[392826858,1762006825604,250.0,0.00014062,2]
[392826859,1762006867627,150.0,0.00014899,2]
[392826860,1762006948789,258.27715,0.0001485,2]
[392826861,1762006959322,1200.0,0.00014899,2]
[392826865,1762007017161,793.553765,0.0001489,3]
[392826866,1762007041712,150.0,0.00014899,2]
[392826867,1762007056398,2307.76,0.000149,2]
[392826868,1762007101732,300.0,0.00014899,2]
[392826869,1762007103781,1200.0,0.00014899,2]
[392826870,1762007109378,150.0,0.00013488,2]
[392826871,1762007111444,150.0,0.00013488,2]
[392826872,1762007111485,150.0,0.00014237,2]
[392826873,1762007111947,262.17229457,0.00013488,2]
[392826874,1762007113319,150.0,0.00013488,2]
[392826875,1762007115933,265.86557999,0.00013488,2]
[392826876,1762007127437,161.66544402,0.00013488,2]
[392826878,1762007151958,4389.68900802,0.0001399,2]
[392826881,1762007212502,1706.03707493,0.0001488,2]
[392826882,1762007217521,1706.03707489,0.00014882,2]
[392826883,1762007221949,150.0,0.00014899,2]
[392826884,1762007222505,1706.03707489,0.00014884,2]
[392826885,1762007227505,180.54432325,0.00014887,2]
[392826886,1762007227531,1525.49275164,0.00014887,2]
[392826887,1762007232551,1706.03707489,0.00014889,2]
[392826888,1762007237527,1706.03707489,0.00014891,2]
[392826889,1762007242521,1706.03707489,0.00014893,2]
[392826890,1762007247517,1706.03707489,0.00014896,2]
[392826891,1762007252515,1650.3689488,0.00014898,2]
[392826892,1762007252542,55.66812609,0.00014898,2]
[392826893,1762007259273,1066.0,0.00014899,2]
[392826896,1762007296931,168.80428,0.0001485,2]
[392826957,1762007341327,200.0,0.00014034,2]
[392827000,1762007401965,150.0,0.00014899,2]
[392827001,1762007402995,477.0,0.00014899,2]
[392827049,1762007432180,-33755.42908128,0.000149,10]
[392827051,1762007432195,-48092.77941645,0.000149,10]
[392827053,1762007432206,-165.21219716,0.000149,2]
[392827055,1762007432216,-4966.80382194,0.000149,2]
[392827064,1762007432298,-33.19617806,0.000149,2]
[392827065,1762007432308,-255.00382194,0.000149,2]
[392827066,1762007432321,-1451.03325295,0.000149,2]
[392827067,1762007432331,-195.0,0.000149,2]
[392827068,1762007432341,-3557.908,0.000149,2]
[392827069,1762007432351,-1344.0,0.000149,2]
[392827070,1762007432361,-823.24552986,0.000149,2]
[392827071,1762007432371,-194.35407659,0.000149,2]
[392827072,1762007432381,-313.0356486,0.000149,2]
[392827096,1762007438241,-475.30266823,0.000149,2]
[392827097,1762007438256,-135.32376768,0.000149,2]
[392827098,1762007438265,-195.0,0.00014932,2]
[392827099,1762007438275,-2755.35024254,0.00014958,2]
[392827100,1762007438286,-1710.93189876,0.00014958,2]
[392827101,1762007438296,-532.2352,0.00014959,2]
[392827102,1762007438306,-14381.91318842,0.00014969,2]
[392827167,1762007439128,-886.66949085,0.00014969,2]
[392827168,1762007439153,-2724.7365,0.00014969,2]
[392827169,1762007439164,-1122.70891671,0.00014969,2]
[392827170,1762007439180,-1814.66994,0.00014969,2]
[392827171,1762007439196,-3783.5,0.00014969,2]
[392827176,1762007440151,-8549.00775895,0.00014969,2]
[392827180,1762007440216,-751.83162811,0.00014969,2]
[392827201,1762007440393,-70209.22121103,0.00014969,2]
[392827209,1762007440457,-3300.0,0.00014969,2]
[392827211,1762007440520,-1515.534,0.00014969,2]
[392827236,1762007443274,-383.76600001,0.00014969,2]
[392827237,1762007443334,-270048.74265099,0.00014969,2]
[392827238,1762007443448,-2160.8,0.00014969,2]
[392827239,1762007443511,-16361.28419574,0.00014969,2]
[392827241,1762007443520,-188.08298846,0.0001497,2]
[392827243,1762007443530,-8892.07135898,0.00014971,2]
[392827244,1762007443540,-248.71531821,0.00014971,2]
[392827245,1762007443549,-425.6840443,0.00014973,2]
[392827246,1762007443559,-167.98860431,0.00014973,2]
[392827247,1762007443571,-500.0,0.00014973,2]
[392827248,1762007443581,-501.37334608,0.00014973,2]
[392827250,1762007443591,-500.0,0.00014973,2]
[392827252,1762007443600,-502.06124753,0.00014973,2]
[392827254,1762007443609,-500.0,0.00014973,2]
[392827255,1762007443619,-500.0,0.00014973,2]
[392827256,1762007443628,-500.0,0.00014973,2]
[392827257,1762007443637,-500.0,0.00014973,2]
[392827259,1762007443647,-500.0,0.00014973,2]
[392827260,1762007443656,-526.17457653,0.00014973,2]
[392827261,1762007443666,-500.0,0.00014973,2]
[392827262,1762007443675,-500.0,0.00014973,2]
[392827263,1762007443684,-504.90191521,0.00014973,2]
[392827264,1762007443694,-18062.07245353,0.00014973,2]
[392827265,1762007443702,-32426.1461575,0.00014976,2]
[392827268,1762007446286,-16810.0489186,0.00014976,2]
[392827269,1762007446347,-461.58236576,0.00014976,2]
[392827270,1762007446395,-767.13984928,0.00014976,2]
[392827271,1762007446482,-1722.82511457,0.00014976,2]
[392827286,1762007544443,160.66350305,0.0001488,2]
[392827297,1762007644756,215.23096,0.0001485,2]
[392827312,1762007677855,2122.93136008,0.0001488,2]
[392827315,1762007682823,2122.93136008,0.00014882,2]
[392827316,1762007684026,183.22195989,0.0001488,2]
[392827318,1762007687890,2122.93136008,0.00014884,2]
[392827319,1762007692835,954.62709073,0.00014887,2]
[392827320,1762007692864,1168.30426935,0.00014887,2]
[392827321,1762007697839,2122.93136008,0.00014889,2]
[392827322,1762007702154,1200.0,0.00014899,2]
[392827323,1762007702836,2122.93136008,0.00014891,2]
[392827324,1762007707838,2122.93136008,0.00014893,2]
[392827325,1762007711425,153.72555774,0.0001488,2]
[392827326,1762007712838,1109.18609267,0.00014896,2]
[392827327,1762007712870,1013.74526741,0.00014896,2]
[392827328,1762007717833,2122.93136008,0.00014898,2]
[392827332,1762007729460,4425.0,0.000149,2]
[392827339,1762007759673,160.66350305,0.0001488,2]
[392827368,1762007869693,488.21,0.00014001,2]
[392827374,1762008035454,179.35913,0.0001484,2]
[392827385,1762008109070,999.0,0.00013983,3]
[392827387,1762008121872,150.0,0.00014899,2]
[392827388,1762008148212,381.25341432,0.00014886,2]
[392827389,1762008153194,79.84732514,0.00014888,2]
[392827390,1762008153219,301.40608916,0.00014888,2]
[392827391,1762008158188,381.2534143,0.00014889,2]
[392827392,1762008163184,381.2534143,0.00014891,2]
[392827393,1762008168250,381.2534143,0.00014892,2]
[392827394,1762008173376,381.2534143,0.00014894,2]
[392827395,1762008178175,381.2534143,0.00014895,2]
[392827396,1762008182260,1000.0,0.000148,2]
[392827397,1762008183242,381.2534143,0.00014897,2]
[392827398,1762008188192,381.2534143,0.00014898,2]
[392827401,1762008301883,150.0,0.00014899,2]
[392827407,1762008308443,150.0,0.00013488,2]
[392827408,1762008308610,150.0,0.00013488,2]
[392827427,1762008357765,162.73293916,0.00014886,2]
[392827450,1762008463391,159.0,0.000315,120]
[392827451,1762008474286,159.0,0.000315,120]
[392827452,1762008481853,150.0,0.00014899,2]
[392827459,1762008618492,545.00617633,0.00014886,2]
[392827460,1762008623495,545.00617631,0.00014888,2]
[392827461,1762008628495,545.00617631,0.00014889,2]
[392827462,1762008631997,610.92,0.00013986,2]
[392827488,1762008633489,545.00617631,0.00014891,2]
[392827490,1762008638481,-275.55335572,0.000149,2]
[392827491,1762008638494,-9724.45664428,0.000149,2]
[392827492,1762008638504,-500.0,0.000149,2]
[392827493,1762008638513,-500.0,0.000149,2]
[392827494,1762008638523,-500.0,0.000149,2]
[392827495,1762008638532,-500.0,0.000149,2]
[392827496,1762008638542,-500.0,0.000149,2]
[392827497,1762008638551,-500.0,0.000149,2]
[392827498,1762008638562,-500.0,0.000149,2]
[392827499,1762008638571,-500.0,0.000149,2]
[392827501,1762008638581,-500.0,0.000149,2]
[392827503,1762008638590,-500.0,0.000149,2]
[392827505,1762008638600,-500.0,0.000149,2]
[392827507,1762008638610,-500.0,0.000149,2]
[392827509,1762008638620,-500.0,0.000149,2]
[392827510,1762008638630,-500.0,0.000149,2]
[392827511,1762008638639,-500.0,0.000149,2]
[392827512,1762008638649,-500.0,0.000149,2]
[392827514,1762008638659,-500.0,0.000149,2]
[392827515,1762008638669,-500.0,0.000149,2]
[392827517,1762008638679,-500.0,0.000149,2]